bitfinex-derivatives/quotes_BTCF0:USTF0_20251120
["timestamp","ask_amount","ask_price","bid_price","bid_amount"]
[1763608595486,0.4049,92565.0,92564.0,0.15654183]
[1763608596182,0.4049,92565.0,92564.0,0.15454183]
[1763608596388,0.4049,92565.0,92564.0,0.15554183]
[1763608596688,0.0441,92565.0,92564.0,0.15554183]
[1763608596885,0.02245,92565.0,92564.0,0.15554183]
[1763608597990,0.0441,92565.0,92564.0,0.15554183]
[1763608601688,0.02272008,92566.0,92565.0,0.05598]
[1763608601884,0.04437008,92566.0,92565.0,0.05817803]
[1763608602196,0.15323425,92566.0,92565.0,0.05817803]
[1763608602692,0.15323425,92566.0,92565.0,0.05917803]
[1763608603391,0.15323425,92566.0,92565.0,0.06017803]
[1763608603588,0.0289,92556.0,92555.0,0.00016211]
[1763608603893,0.39189803,92556.0,92555.0,0.04337211]
[1763608604086,0.39189803,92556.0,92555.0,0.05614211]
[1763608605099,0.39189803,92556.0,92555.0,0.06014211]
[1763608605689,0.39189803,92556.0,92555.0,0.05914211]
[1763608605994,0.39189803,92556.0,92555.0,0.05814211]
[1763608606591,0.39189803,92556.0,92555.0,0.04537211]
[1763608606895,0.39189803,92556.0,92555.0,0.00216211]
[1763608608200,0.0289,92541.0,92540.0,0.05598]
[1763608608494,0.13925873,92541.0,92540.0,0.05598]
[1763608609289,0.03109803,92541.0,92540.0,0.05798]
[1763608609491,0.00219803,92541.0,92540.0,0.05798]
[1763608609797,0.00219803,92541.0,92540.0,0.05998]
[1763608610382,0.02906211,92550.0,92549.0,0.1513614]
[1763608610593,0.03126014,92550.0,92549.0,0.1513614]
[1763608611487,0.03126014,92550.0,92549.0,0.1523614]
[1763608612094,0.03126014,92550.0,92549.0,0.1533614]
[1763608612497,0.03126014,92550.0,92549.0,0.04521]
[1763608613197,0.03126014,92550.0,92549.0,0.002]
[1763608614796,0.13554014,92550.0,92549.0,0.002]
[1763608614996,0.13554014,92550.0,92549.0,0.02389]
[1763608616198,0.13554014,92550.0,92549.0,0.02289]
[1763608616493,0.03126014,92550.0,92549.0,0.04421]
[1763608616686,0.03126014,92550.0,92547.0,0.0741528]
[1763608616883,0.1081689,92534.0,92533.0,0.01277]
[1763608617093,0.47116693,92534.0,92533.0,0.01277]
[1763608617493,0.47116693,92534.0,92533.0,0.03466]
[1763608618489,0.47116693,92534.0,92533.0,0.03666]
[1763608619086,0.47116693,92534.0,92533.0,0.03766]
[1763608621297,0.47116693,92534.0,92533.0,0.01577]
[1763608622391,0.47116693,92534.0,92533.0,0.03766]
[1763608623000,0.39954982,92554.0,92547.0,0.1658437]
[1763608623193,0.36299803,92548.0,92547.0,0.05769]
[1763608624096,0.00219803,92548.0,92547.0,0.05769]
[1763608624303,0.00219803,92548.0,92547.0,0.05869]
[1763608624900,0.11035053,92548.0,92547.0,0.05969]
[1763608625694,0.11035053,92548.0,92547.0,0.0157]
[1763608626202,0.11035053,92548.0,92547.0,0.03685]
[1763608626504,0.11035053,92548.0,92547.0,0.05969]
[1763608627403,0.00219803,92548.0,92547.0,0.05969]
[1763608629301,0.11035053,92548.0,92547.0,0.05969]
[1763608629506,0.11035053,92548.0,92547.0,0.0157]
[1763608629799,0.11035053,92548.0,92547.0,0.002]
[1763608630305,0.11035053,92548.0,92547.0,0.0157]
[1763608631397,0.21463053,92548.0,92547.0,0.03685]
[1763608631890,0.21463053,92548.0,92547.0,0.0157]
[1763608632996,0.21463053,92548.0,92547.0,0.05969]
[1763608632997,0.00219803,92548.0,92547.0,0.05969]
[1763608636804,0.21467053,92548.0,92547.0,0.002]
[1763608639101,0.25353881,92548.0,92547.0,0.002]
[1763608639298,0.25353881,92548.0,92547.0,0.04599]
[1763608639706,0.00219803,92548.0,92547.0,0.04599]
[1763608641909,0.00219803,92548.0,92547.0,0.002]
[1763608642106,0.00219803,92548.0,92547.0,1e-07]
[1763608642107,0.16486331,92548.0,92547.0,1e-07]
[1763608642414,0.10655803,92548.0,92547.0,1e-07]
[1763608644014,0.00219803,92548.0,92547.0,0.0576901]
[1763608644311,0.16489782,92548.0,92547.0,0.0576901]
[1763608644721,0.16489782,92548.0,92547.0,0.0348501]
[1763608645416,0.16489782,92548.0,92547.0,0.0137001]
[1763608645813,0.16489782,92548.0,92547.0,1e-07]
[1763608646011,0.10659803,92548.0,92547.0,1e-07]
[1763608646513,0.50659803,92548.0,92547.0,1e-07]
[1763608646715,0.1081713,92532.0,92531.0,1e-08]
[1763608646916,0.1081841,92521.0,92511.0,0.0137]
[1763608647119,0.57558213,92521.0,92511.0,0.0137]
[1763608647518,0.57558213,92521.0,92520.0,0.03617]
[1763608648116,0.46739803,92521.0,92520.0,0.05864]
[1763608648415,0.46743803,92521.0,92520.0,0.05864]
[1763608648615,0.47143803,92521.0,92520.0,0.05864]
[1763608649720,0.47443803,92521.0,92520.0,0.05864]
[1763608654124,0.47443803,92521.0,92520.0,0.1668253]
[1763608654521,0.58262223,92521.0,92520.0,0.1668253]
[1763608655015,0.36999803,92521.0,92520.0,0.1668253]
[1763608655221,0.007,92521.0,92520.0,0.1668253]
[1763608656425,0.00016211,92530.0,92529.0,0.1510248]
[1763608658123,0.00016211,92530.0,92529.0,0.1530248]
[1763608658325,0.1081636,92539.0,92538.0,0.04285]
[1763608658525,0.1044,92540.0,92539.0,0.1510131]
[1763608658720,0.10659803,92540.0,92539.0,0.1510131]
[1763608659520,0.00016211,92549.0,92548.0,0.1510026]
[1763608659521,0.36096211,92549.0,92548.0,0.1510026]
[1763608659723,0.29096211,92549.0,92548.0,0.1510026]
[1763608659931,0.00027008,92566.0,92565.0,0.1509827]
[1763608660226,0.00246811,92566.0,92565.0,0.04285]
[1763608661520,0.00246811,92566.0,92565.0,0.1509827]
[1763608663222,0.1044,92580.0,92574.0,0.1649022]
[1763608663723,0.1081105,92585.0,92574.0,0.5257022]
[1763608664323,0.1044,92587.0,92574.0,0.5257022]
[1763608664324,0.02145,92575.0,92574.0,0.37473]
[1763608664530,0.02145,92575.0,92574.0,0.05678]
[1763608664718,0.02364803,92575.0,92574.0,0.05678]
[1763608664921,0.04509803,92575.0,92574.0,0.05678]
[1763608665730,0.04509803,92575.0,92574.0,0.05878]
[1763608666223,0.04509803,92575.0,92574.0,0.05778]
[1763608666425,0.02364803,92575.0,92574.0,0.05778]
[1763608666732,0.00219803,92575.0,92574.0,0.05878]
[1763608667916,0.00219803,92575.0,92574.0,0.05678]
[1763608668130,0.00219803,92575.0,92574.0,0.05878]
[1763608668628,0.3608,92581.0,92580.0,0.1509652]
[1763608669119,0.00016211,92584.0,92583.0,0.05678]
[1763608669716,0.00236014,92584.0,92583.0,0.05678]
[1763608670120,0.04526014,92584.0,92580.0,0.002]
[1763608670320,0.0429,92581.0,92580.0,0.002]
[1763608670531,0.04509803,92581.0,92580.0,0.002]
[1763608670925,0.04509803,92581.0,92580.0,0.04485]
[1763608671323,0.04509803,92581.0,92580.0,0.04385]
[1763608671324,0.00219803,92581.0,92580.0,0.04385]
[1763608671526,0.00219803,92581.0,92580.0,0.04285]
[1763608672226,0.04509803,92581.0,92580.0,0.04385]
[1763608672426,0.04509803,92581.0,92580.0,0.001]
[1763608672931,0.0429,92575.0,92574.0,0.05678]
[1763608673228,0.04509803,92575.0,92574.0,0.05678]
[1763608673632,0.15321903,92575.0,92574.0,0.05678]
[1763608673832,0.15321903,92575.0,92574.0,0.02137]
[1763608674226,0.15321903,92575.0,92574.0,0.05678]
[1763608675233,0.15321903,92575.0,92574.0,0.05778]
[1763608675434,0.15321903,92575.0,92574.0,0.05878]
[1763608675835,0.15321903,92575.0,92574.0,0.02337]
[1763608676334,0.15321903,92575.0,92574.0,0.002]
[1763608677034,0.15321903,92575.0,92574.0,0.02337]
[1763608677232,0.15321903,92575.0,92574.0,0.05878]
[1763608677438,0.11031903,92575.0,92574.0,0.05878]
[1763608677931,0.00219803,92575.0,92574.0,0.05878]
[1763608679036,0.1044,92580.0,92574.0,0.05878]
[1763608679037,0.1044,92580.0,92579.0,0.1509664]
[1763608679533,0.10659803,92580.0,92579.0,0.1509664]
[1763608680235,0.00219803,92580.0,92579.0,0.1509664]
[1763608680532,0.00219803,92580.0,92579.0,0.1519664]
[1763608681138,0.00219803,92580.0,92579.0,0.1529664]
[1763608681740,0.00016211,92584.0,92583.0,0.1648917]
[1763608682529,0.3608,92596.0,92595.0,0.0431]
[1763608683536,0.1080952,92598.0,92597.0,0.0431]
[1763608684537,0.11029323,92598.0,92597.0,0.0431]
[1763608684840,0.13136323,92598.0,92597.0,0.0431]
[1763608685033,0.15281323,92598.0,92597.0,0.0431]
[1763608686239,0.00219803,92598.0,92597.0,0.0431]
[1763608686426,0.00010728,92605.0,92604.0,0.0431]
[1763608687740,0.00010728,92605.0,92604.0,0.0441]
[1763608688124,0.04482531,92605.0,92604.0,0.0441]
[1763608689042,0.04482531,92605.0,92604.0,0.0451]
[1763608691944,0.04482531,92605.0,92604.0,0.002]
[1763608695241,0.04482531,92605.0,92604.0,0.0451]
[1763608695848,0.00230531,92605.0,92604.0,0.0451]
[1763608696344,0.13146131,92605.0,92604.0,0.0451]
[1763608696848,0.15291131,92605.0,92604.0,0.0451]
[1763608697848,0.04482531,92605.0,92604.0,0.0451]
[1763608699746,0.04482531,92605.0,92604.0,0.002]
[1763608701439,0.04482531,92605.0,92604.0,0.02399]
[1763608701641,0.04482531,92605.0,92604.0,0.002]
[1763608701948,0.04482531,92605.0,92604.0,0.0451]
[1763608703253,0.00230531,92605.0,92604.0,0.0451]
[1763608705440,0.00010728,92605.0,92604.0,0.0451]
[1763608707147,0.00026996,92606.0,92605.0,0.151616]
[1763608707352,0.1080749,92615.0,92614.0,0.1509143]
[1763608707548,0.11027293,92615.0,92614.0,0.1509143]
[1763608708142,0.14914506,92615.0,92614.0,0.1509143]
[1763608709148,0.15273293,92615.0,92614.0,0.1519143]
[1763608709354,0.15273293,92615.0,92614.0,0.04384]
[1763608709744,0.00219803,92615.0,92614.0,0.04384]
[1763608709946,0.43854374,92628.0,92615.0,0.1509143]
[1763608709947,0.03883383,92616.0,92615.0,0.1509143]
[1763608710156,0.03883383,92618.0,92617.0,0.04284]
[1763608710753,0.00219803,92618.0,92617.0,0.04284]
[1763608711551,0.04103186,92618.0,92617.0,0.04284]
[1763608711746,0.03883383,92618.0,92617.0,0.04284]
[1763608712142,0.1080708,92618.0,92617.0,0.04284]
[1763608712352,0.14690463,92618.0,92617.0,0.04284]
[1763608712746,0.1080708,92618.0,92617.0,0.04384]
[1763608714451,0.03883383,92620.0,92619.0,0.04489]
[1763608715458,0.07774374,92634.0,92619.0,0.04489]
[1763608715459,5e-08,92646.0,92645.0,0.1080393]
[1763608715648,5e-08,92646.0,92645.0,0.1044]
[1763608715649,0.01385,92646.0,92645.0,0.1044]
[1763608715855,0.06038803,92646.0,92645.0,1.6044]
[1763608716150,0.06038803,92646.0,92645.0,1.89955595]
[1763608716151,0.05819,92646.0,92645.0,1.89955595]
[1763608716455,0.05819,92646.0,92645.0,1.99422812]
[1763608716656,0.05819,92646.0,92645.0,1.99422821]
[1763608716960,0.01385,92655.0,92645.0,1.9652]
[1763608717154,0.05819,92655.0,92654.0,0.4688288]
[1763608718261,0.06038803,92655.0,92654.0,0.4688288]
[1763608718458,0.06038803,92655.0,92645.0,0.3618]
[1763608718459,0.05819,92646.0,92645.0,0.3618]
[1763608718662,0.05819,92646.0,92645.0,0.4662]
[1763608718854,0.05819,92646.0,92645.0,0.4682]
[1763608719252,0.06038803,92646.0,92645.0,0.4682]
[1763608720360,0.06038803,92646.0,92645.0,0.4672]
[1763608721154,0.06038803,92646.0,92645.0,0.3648]
[1763608721355,0.06038803,92646.0,92645.0,0.46916]
[1763608721552,0.11864227,92646.0,92645.0,0.004]
[1763608723652,0.11864227,92646.0,92645.0,0.002]
[1763608723861,0.11864227,92646.0,92645.0,0.003]
[1763608724062,0.11864227,92646.0,92645.0,0.001]
[1763608724256,0.11864227,92646.0,92645.0,0.002]
[1763608725169,0.11864227,92646.0,92645.0,0.001]
[1763608725571,0.11864227,92646.0,92645.0,0.002]
[1763608726459,0.11864227,92646.0,92645.0,0.1100393]
[1763608727754,0.11864227,92646.0,92645.0,0.002]
[1763608728456,0.06038803,92646.0,92645.0,0.002]
[1763608728661,0.11864227,92646.0,92645.0,0.002]
[1763608743172,0.04344,92637.0,92634.0,0.03875595]
[1763608743373,0.1220021,92634.0,92633.0,0.02905396]
[1763608743673,0.04344,92629.0,92628.0,0.1080587]
[1763608743878,0.04563803,92629.0,92628.0,0.1080587]
[1763608744677,0.04563803,92629.0,92628.0,0.13712819]
[1763608745064,0.04863803,92629.0,92628.0,0.13712819]
[1763608745263,0.05263803,92629.0,92628.0,0.1080587]
[1763608745979,0.04863803,92629.0,92628.0,0.1090587]
[1763608746678,0.10389227,92629.0,92628.0,0.1100587]
[1763608747377,0.10389227,92629.0,92628.0,0.1090587]
[1763608747577,0.10389227,92629.0,92628.0,0.1100587]
[1763608749272,0.10389227,92629.0,92628.0,0.14881465]
[1763608749679,0.10389227,92629.0,92628.0,0.002]
[1763608750580,0.10389227,92629.0,92628.0,0.1100591]
[1763608754786,0.04563803,92629.0,92628.0,0.1100591]
[1763608754986,0.10389227,92629.0,92628.0,0.1100591]
[1763608757376,0.10389227,92629.0,92628.0,0.4708591]
[1763608757590,0.10389227,92629.0,92628.0,0.49994854]
[1763608758488,0.04563803,92629.0,92628.0,0.49994854]
[1763608758688,0.10389227,92629.0,92628.0,0.49994854]
[1763608764206,0.21195017,92629.0,92628.0,0.39188944]
[1763608764403,0.21195017,92629.0,92628.0,0.3628]
[1763608766204,0.10389227,92629.0,92628.0,0.3628]
[1763608771612,0.10389227,92629.0,92628.0,0.40155595]
[1763608773203,0.10389227,92629.0,92628.0,0.3628]
[1763608773403,0.10389227,92629.0,92628.0,0.4708591]
[1763608775514,0.21195017,92629.0,92628.0,0.4708591]
[1763608776911,0.10389227,92629.0,92628.0,0.4708591]
[1763608778711,0.04563803,92629.0,92628.0,0.4708591]
[1763608780412,0.01395,92634.0,92633.0,0.1080533]
[1763608780714,0.03629,92634.0,92633.0,0.1042]
[1763608780912,0.05865,92634.0,92633.0,0.1042]
[1763608781516,0.06084803,92634.0,92633.0,0.1052]
[1763608782117,0.06084803,92634.0,92633.0,0.1062]
[1763608782317,0.06084803,92634.0,92633.0,0.16445961]
[1763608783501,0.05865,92634.0,92633.0,0.1062]
[1763608785215,0.05865,92634.0,92633.0,0.16444238]
[1763608786404,0.01395,92634.0,92633.0,0.467]
[1763608786610,0.00016164,92638.0,92637.0,0.1080486]
[1763608787717,0.00016164,92638.0,92637.0,0.1090486]
[1763608788109,0.00016164,92638.0,92637.0,0.1100486]
[1763608788915,0.01287,92650.0,92644.0,0.1080404]
[1763608789111,0.01287,92650.0,92644.0,0.5730404]
[1763608789318,0.01287,92650.0,92644.0,0.63121913]
[1763608789616,0.01287,92650.0,92644.0,0.5730404]
[1763608790817,0.01287,92655.0,92654.0,0.1080288]
[1763608791022,0.01287,92655.0,92654.0,0.5730288]
[1763608791209,0.03521,92655.0,92654.0,0.5730288]
[1763608792112,0.01287,92655.0,92654.0,0.61175836]
[1763608792309,0.01287,92655.0,92654.0,0.5750288]
[1763608792511,0.03521,92655.0,92654.0,0.5750288]
[1763608792914,0.05757,92655.0,92654.0,0.5750288]
[1763608793724,0.05976803,92655.0,92654.0,0.5750288]
[1763608795223,0.05976803,92655.0,92654.0,0.60404493]
[1763608797424,0.05976803,92655.0,92654.0,0.5750288]
[1763608798619,0.01287,92660.0,92659.0,0.108023]
[1763608799217,0.01287,92665.0,92664.0,0.1080172]
[1763608799418,0.01287,92665.0,92664.0,0.5730172]
[1763608799616,0.03521,92665.0,92664.0,0.5730172]
[1763608799818,0.05757,92665.0,92664.0,0.5730172]
[1763608800014,0.05976803,92665.0,92664.0,0.5730172]
[1763608800821,0.05976803,92665.0,92664.0,0.5740172]
[1763608801725,0.22603827,92665.0,92664.0,0.3618]
[1763608801930,0.22603827,92665.0,92664.0,0.467]
[1763608806135,0.11802227,92665.0,92664.0,0.5750172]
[1763608806637,0.11802227,92665.0,92664.0,0.467]
[1763608808133,0.11802227,92665.0,92664.0,0.5750172]
[1763608808335,0.11802227,92665.0,92664.0,0.4708172]
[1763608808531,0.05976803,92665.0,92664.0,0.4708172]
[1763608808837,0.09612227,92665.0,92664.0,0.4708172]
[1763608809040,0.11730227,92665.0,92664.0,0.4708172]
[1763608809332,0.07112424,92665.0,92664.0,0.4708172]
[1763608809928,0.00026973,92686.0,92679.0,0.1079997]
[1763608810137,0.00026973,92686.0,92685.0,0.1079927]
[1763608810330,0.04424973,92686.0,92685.0,0.1079927]
[1763608811725,0.04424973,92686.0,92685.0,0.1089927]
[1763608812630,0.00026973,92686.0,92685.0,0.1089927]
[1763608812840,3e-08,92686.0,92685.0,0.1099927]
[1763608813133,3e-08,92686.0,92685.0,0.12064824]
[1763608813338,3e-08,92686.0,92685.0,0.51042852]
[1763608813927,3e-08,92686.0,92685.0,0.48144824]
[1763608815141,3e-08,92686.0,92685.0,0.58560824]
[1763608818539,3e-08,92686.0,92685.0,0.5749527]
[1763608818743,3e-08,92686.0,92685.0,0.61353926]
[1763608820935,3e-08,92686.0,92685.0,0.50937926]
[1763608821246,3e-08,92686.0,92685.0,0.5749527]
[1763608822244,3e-08,92686.0,92685.0,0.61353173]
[1763608822446,3e-08,92686.0,92685.0,0.5749527]
[1763608822745,3e-08,92686.0,92685.0,0.61352696]
[1763608825339,3e-08,92686.0,92685.0,0.5749527]
[1763608828656,3e-08,92686.0,92685.0,0.5729527]
[1763608828849,0.01369,92700.0,92699.0,0.1079763]
[1763608829038,0.01369,92700.0,92699.0,0.61149914]
[1763608829242,0.01369,92700.0,92699.0,0.5729363]
[1763608829649,0.01369,92700.0,92699.0,0.61149914]
[1763608830150,0.05689,92700.0,92699.0,0.5749363]
[1763608830654,0.01369,92700.0,92699.0,0.5749363]
[1763608830851,0.01369,92705.0,92704.0,0.1079705]
[1763608832153,0.0581,92705.0,92704.0,0.1089705]
[1763608832348,0.0581,92705.0,92704.0,0.1099705]
[1763608833052,0.06029803,92705.0,92704.0,0.1099706]
[1763608833245,0.0581,92705.0,92704.0,0.1099706]
[1763608833445,0.0581,92705.0,92704.0,0.2140906]
[1763608834046,0.01369,92705.0,92704.0,0.2140906]
[1763608835152,0.01291,92710.0,92709.0,0.1079647]
[1763608835353,0.03394,92710.0,92709.0,0.1079647]
[1763608835654,0.05695,92710.0,92709.0,0.1079647]
[1763608836454,0.05695,92710.0,92709.0,0.1089647]
[1763608837566,0.05914803,92710.0,92709.0,0.002]
[1763608837850,0.05914803,92710.0,92709.0,0.10612]
[1763608838355,0.05914803,92710.0,92709.0,0.002]
[1763608840443,0.04404,92704.0,92703.0,0.13307452]
[1763608840647,0.15420863,92704.0,92703.0,0.13307452]
[1763608841162,0.04623803,92704.0,92703.0,0.13307452]
[1763608841845,0.04623803,92704.0,92703.0,0.13407452]
[1763608842050,0.04623803,92704.0,92703.0,0.13507452]
[1763608842260,0.04623803,92704.0,92703.0,0.10612]
[1763608842853,0.15420863,92704.0,92703.0,0.10612]
[1763608843254,0.04623803,92704.0,92703.0,0.10612]
[1763608846658,0.04404,92704.0,92703.0,0.10612]
[1763608847247,0.04404,92704.0,92703.0,0.1446828]
[1763608848252,0.01294,92706.0,92704.0,0.1079706]
[1763608848450,0.01291,92710.0,92709.0,0.1079647]
[1763608848667,0.01291,92710.0,92709.0,0.16599185]
[1763608849056,0.01291,92710.0,92709.0,0.1079647]
[1763608849259,0.01291,92710.0,92709.0,0.52678802]
[1763608849460,0.03394,92710.0,92709.0,0.52678892]
[1763608849765,0.05695,92710.0,92709.0,0.52778892]
[1763608850564,0.05695,92710.0,92709.0,0.52878892]
[1763608852058,0.05695,92710.0,92709.0,0.4707647]
[1763608853663,0.05695,92710.0,92709.0,0.5748847]
[1763608857161,0.05695,92710.0,92709.0,0.61358697]
[1763608857363,0.01291,92710.0,92709.0,0.5748847]
[1763608857569,0.03394,92710.0,92709.0,0.5748847]
[1763608858166,0.01291,92724.0,92723.0,0.1079484]
[1763608858366,0.03394,92724.0,92723.0,0.5728684]
[1763608858566,0.05695,92724.0,92723.0,0.5728684]
[1763608858773,0.05695,92724.0,92723.0,2.0728684]
[1763608859274,0.05695,92724.0,92723.0,2.0738684]
[1763608859870,0.05695,92724.0,92723.0,1.96592]
[1763608860464,0.05914803,92724.0,92723.0,1.501]
[1763608860669,0.05914803,92724.0,92723.0,0.10512]
[1763608866976,0.04372,92719.0,92714.0,0.00016184]
[1763608867174,0.1079915,92686.0,92684.0,0.07742292]
[1763608867477,0.02147,92684.0,92682.0,0.01362]
[1763608867668,0.1517004,92696.0,92695.0,0.0453]
[1763608867873,0.17807205,92696.0,92695.0,0.0453]
[1763608869574,0.17807205,92696.0,92695.0,0.0463]
[1763608869977,0.17807205,92696.0,92695.0,0.0473]
[1763608872770,0.19101205,92696.0,92695.0,0.002]
[1763608872976,0.1517103,92687.0,92686.0,0.00016184]
[1763608873176,0.1517208,92678.0,92677.0,2.42e-06]
[1763608873483,0.1517453,92657.0,92656.0,0.05892]
[1763608873683,0.15394333,92657.0,92656.0,0.1169734]
[1763608873883,0.00219803,92657.0,92656.0,0.1169734]
[1763608874675,0.00233245,92657.0,92656.0,0.1169734]
[1763608875476,0.00233245,92657.0,92656.0,0.1179734]
[1763608875978,0.00233245,92657.0,92656.0,0.2259998]
[1763608876180,0.02680245,92657.0,92656.0,0.1169734]
[1763608876381,0.04905245,92657.0,92656.0,0.1169734]
[1763608877575,0.04805245,92657.0,92656.0,0.1169734]
[1763608877776,0.04805245,92657.0,92656.0,0.1179734]
[1763608877981,0.00013442,92657.0,92656.0,0.1179734]
[1763608878289,0.00016184,92666.0,92665.0,0.0453]
[1763608878588,0.00016184,92666.0,92665.0,0.14946]
[1763608878788,0.00016184,92666.0,92665.0,0.3155293]
[1763608879087,0.00235987,92666.0,92665.0,0.3155293]
[1763608879286,0.04607987,92666.0,92665.0,0.3155293]
[1763608879888,0.04607987,92666.0,92665.0,0.2075134]
[1763608880088,0.04607987,92666.0,92665.0,0.2085134]
[1763608880383,0.04607987,92666.0,92665.0,0.1043534]
[1763608880583,0.04607987,92666.0,92665.0,0.0814534]
[1763608880973,0.04607987,92666.0,92665.0,0.0824534]
[1763608881585,0.04607987,92666.0,92665.0,0.0814534]
[1763608881789,0.04607987,92666.0,92665.0,0.0824534]
[1763608881990,0.15409467,92666.0,92665.0,0.0824534]
[1763608882577,0.15409467,92666.0,92665.0,0.0600534]
[1763608882878,0.0302,92648.0,92646.0,0.01388985]
[1763608883082,0.0302,92648.0,92647.0,0.04546184]
[1763608883083,0.39319803,92648.0,92647.0,0.04546184]
[1763608883892,0.39619803,92648.0,92647.0,0.04546184]
[1763608884986,0.36599803,92648.0,92647.0,0.04546184]
[1763608885188,0.37099803,92648.0,92647.0,0.04546184]
[1763608885377,0.3688,92648.0,92647.0,0.04546184]
[1763608885578,0.3608,92658.0,92657.0,0.1533253]
[1763608885792,0.00235987,92666.0,92665.0,0.1533159]
[1763608886496,0.00235987,92666.0,92665.0,0.0453]
[1763608886702,0.02382987,92666.0,92665.0,0.0453]
[1763608887004,0.04557987,92666.0,92665.0,0.0453]
[1763608887803,0.04557987,92666.0,92665.0,0.0463]
[1763608888503,0.00235987,92666.0,92665.0,0.0473]
[1763608890003,0.00016184,92666.0,92665.0,0.0473]
[1763608893508,0.3608,92678.0,92677.0,0.04293]
[1763608893708,0.36299803,92678.0,92677.0,0.150932]
[1763608893903,0.40876803,92678.0,92677.0,0.150932]
[1763608894515,0.40876803,92678.0,92677.0,0.151932]
[1763608895207,0.40876803,92678.0,92677.0,0.152932]
[1763608897114,0.43468162,92678.0,92677.0,0.152932]
[1763608898515,0.02591359,92678.0,92677.0,0.152932]
[1763608898715,0.3608,92686.0,92685.0,0.1520026]
[1763608898913,0.3608,92686.0,92685.0,0.2561626]
[1763608899611,0.00016153,92687.0,92686.0,0.04401]
[1763608900401,0.39963953,92707.0,92695.0,0.151991]
[1763608900715,0.3608,92707.0,92695.0,0.256151]
[1763608901707,0.1079702,92705.0,92695.0,0.256151]
[1763608901903,0.1079702,92705.0,92695.0,0.257151]
[1763608902308,0.04577,92707.0,92706.0,0.04401]
[1763608902607,0.07340215,92707.0,92706.0,0.04401]
[1763608904216,0.43420215,92707.0,92706.0,0.04401]
[1763608906011,0.3608,92707.0,92706.0,0.04401]
[1763608906213,0.05829648,92726.0,92725.0,0.151956]
[1763608906214,0.04622961,92726.0,92725.0,0.151956]
[1763608906520,0.04842764,92726.0,92725.0,0.151956]
[1763608907317,0.04622961,92726.0,92725.0,0.152956]
[1763608910516,0.04842764,92726.0,92725.0,0.152956]
[1763608915916,0.40922764,92726.0,92725.0,0.001]
[1763608917321,0.04596,92717.0,92716.0,0.00016184]
[1763608917522,0.15611343,92717.0,92716.0,0.00016184]
[1763608918421,0.15611343,92717.0,92716.0,0.00116184]
[1763608918622,0.15611343,92717.0,92716.0,0.00216184]
[1763608921715,0.04815803,92717.0,92716.0,0.15412834]
[1763608922820,0.04815803,92717.0,92716.0,0.04617184]
[1763608923118,0.04815803,92717.0,92716.0,0.15412834]
[1763608926210,0.07334073,92717.0,92716.0,0.15412834]
[1763608927408,0.04815803,92717.0,92716.0,0.15412834]
[1763608928007,0.04815803,92717.0,92716.0,0.00216184]
[1763608928222,0.07337087,92717.0,92716.0,0.00216184]
[1763608928426,0.07337087,92717.0,92716.0,0.04706184]
[1763608928814,0.00219803,92717.0,92716.0,0.04706184]
[1763608929312,0.04406961,92726.0,92725.0,0.152846]
[1763608929514,0.02385764,92726.0,92725.0,0.152846]
[1763608930009,0.04626764,92726.0,92725.0,0.152846]
[1763608930710,0.04626764,92726.0,92725.0,0.153846]
[1763608932019,0.00026961,92726.0,92725.0,0.153846]
[1763608937027,0.02165961,92726.0,92725.0,0.153846]
[1763608937223,0.00026961,92726.0,92725.0,0.153846]
[1763608939628,0.4046,92736.0,92735.0,0.1528344]
[1763608939831,0.42984406,92736.0,92735.0,0.1528344]
[1763608940328,0.43204209,92736.0,92735.0,0.1528344]
[1763608941028,0.40123209,92736.0,92735.0,0.0449]
[1763608941230,0.44503209,92736.0,92735.0,0.02307]
[1763608941530,0.44503209,92736.0,92735.0,0.0449]
[1763608944821,0.1079344,92735.0,92730.0,0.10412]
[1763608945027,0.04599803,92731.0,92730.0,0.0449]
[1763608945232,0.0438,92717.0,92704.0,0.3608]
[1763608945427,0.04599803,92717.0,92711.0,0.10412]
[1763608945733,0.07124253,92717.0,92711.0,0.10412]
[1763608946235,0.07124253,92717.0,92713.0,0.10796]
[1763608946930,0.07124253,92717.0,92716.0,0.00116184]
[1763608947432,0.07124253,92717.0,92716.0,0.00216184]
[1763608947936,0.07124253,92717.0,92716.0,0.11011834]
[1763608949639,0.07124253,92717.0,92716.0,0.13243834]
[1763608951441,0.07124253,92717.0,92716.0,0.15391834]
[1763608952140,0.02744253,92717.0,92716.0,0.15391834]
[1763608952334,0.0252445,92717.0,92716.0,0.15391834]
[1763608952543,0.04428,92730.0,92729.0,0.1079414]
[1763608952742,0.04428,92730.0,92729.0,0.1516114]
[1763608952743,0.04647803,92730.0,92729.0,0.1516114]
[1763608954532,0.01326,92729.0,92725.0,0.0214]
[1763608954740,0.04647803,92726.0,92725.0,0.04367]
[1763608956540,0.04647803,92726.0,92725.0,0.04467]
[1763608959543,0.00219803,92726.0,92725.0,0.04467]
[1763608959953,0.40508,92735.0,92734.0,0.1516056]
[1763608960246,0.40727803,92735.0,92734.0,0.1516056]
[1763608963834,0.40727803,92735.0,92734.0,0.04367]
[1763608964038,0.04428,92725.0,92724.0,0.14779]
[1763608964240,0.04428,92723.0,92722.0,0.3608]
[1763608964443,0.11014733,92723.0,92714.0,0.3608]
[1763608964646,0.04428,92717.0,92716.0,0.10811834]
[1763608964838,0.04647803,92717.0,92716.0,0.12951834]
[1763608965541,0.04647803,92717.0,92716.0,0.15178834]
[1763608966043,0.04647803,92717.0,92716.0,0.15278834]
[1763608966431,0.02412803,92717.0,92716.0,0.15378834]
[1763608967050,0.04647803,92717.0,92716.0,0.15378834]
[1763608969239,0.04647803,92717.0,92716.0,0.21419834]
[1763608969641,0.04647803,92717.0,92716.0,0.15378834]
[1763608973142,0.04647803,92717.0,92716.0,0.00216184]
[1763608973349,0.07169356,92717.0,92716.0,0.00216184]
[1763608973650,0.07169356,92717.0,92716.0,0.02356184]
[1763608973841,0.07169356,92717.0,92716.0,0.04583184]
[1763608977044,0.04934356,92717.0,92716.0,0.04583184]
[1763608977253,0.07169356,92717.0,92716.0,0.04583184]
[1763608977551,0.02412803,92717.0,92716.0,0.04583184]
[1763608977754,0.04647803,92717.0,92716.0,0.04583184]
[1763608979547,0.04647803,92717.0,92716.0,0.15378834]
[1763608981453,0.04647803,92717.0,92716.0,0.25786834]
[1763608981658,0.02412803,92717.0,92716.0,0.25786834]
[1763608981848,0.04647803,92717.0,92716.0,0.25786834]